bitfinex/quotes_SOLUSD_20251030
["timestamp","ask_amount","ask_price","bid_price","bid_amount"]
[1761829579017,0.1,189.06,188.96,0.82216157]
[1761829579226,50.1,189.06,188.97,8.30391312]
[1761829579440,50.1,189.06,188.96,0.68]
[1761829579441,5.35050575,188.99,188.96,0.68]
[1761829579738,5.35050575,188.99,188.95,13.23101349]
[1761829579739,5.35050575,189.0,188.95,13.23101349]
[1761829580110,5.35050575,189.0,188.95,13.91101349]
[1761829580309,5.35050575,189.0,188.96,0.68]
[1761829580528,5.35050575,189.02,188.96,0.68]
[1761829580721,5.35050575,189.01,188.96,0.68]
[1761829581040,20.592,189.03,188.97,18.52145842]
[1761829581335,5.35050575,189.03,188.98,0.68]
[1761829581554,5.35050575,189.04,188.98,6.03050575]
[1761829581712,0.1,189.12,189.0,5.35050575]
[1761829581713,9.88882769,189.12,189.0,5.35050575]
[1761829581910,5.35050575,189.06,189.0,5.35050575]
[1761829582138,5.35050575,189.06,188.98,0.14216157]
[1761829582331,5.35050575,189.05,189.0,0.14216157]
[1761829582729,5.35050575,189.05,188.98,5.35050575]
[1761829582945,5.35050575,189.04,188.99,0.14216157]
[1761829583124,0.1,189.08,189.0,5.29100529]
[1761829583638,5.35050575,189.05,189.0,18.51851851]
[1761829584213,0.1,189.08,189.0,19.17851851]
[1761829584424,5.35050575,189.05,189.0,19.17851851]
[1761829584823,5.35050575,189.05,189.0,18.51851851]
[1761829585027,5.35050575,189.04,189.0,5.29100529]
[1761829585315,5.35050575,189.04,188.98,5.35050575]
[1761829585316,0.1,189.08,188.99,24.53000413]
[1761829585536,5.35050575,189.05,188.99,24.53000413]
[1761829585841,5.35050575,189.05,188.99,19.17949838]
[1761829586239,0.1,189.08,189.0,0.66]
[1761829586435,5.35050575,189.07,189.0,6.01050575]
[1761829586637,5.35050575,189.07,189.01,0.66]
[1761829587024,0.1,189.11,189.01,6.01050575]
[1761829587248,5.35050575,189.09,189.02,23.86706483]
[1761829587427,5.35050575,189.08,189.03,0.80216157]
[1761829587623,20.592,189.1,189.03,0.80216157]
[1761829587825,5.35050575,189.08,189.03,0.80216157]
[1761829588237,5.35050575,189.07,188.99,13.22772253]
[1761829588439,5.35050575,189.04,188.99,5.95128525]
[1761829588941,5.35050575,189.04,189.0,0.66]
[1761829589119,5.35050575,189.04,189.01,5.29072535]
[1761829589646,5.35050575,189.04,188.99,13.22821313]
[1761829589647,5.35050575,189.02,188.95,0.66]
[1761829589972,5.35050575,188.99,188.96,5.29212531]
[1761829590261,20.592,189.06,188.98,5.35050575]
[1761829590559,25.94250575,189.08,189.01,5.49266732]
[1761829590759,5.35050575,189.08,189.01,5.49266732]
[1761829590927,5.35050575,189.08,189.02,0.66]
[1761829591118,0.1,189.08,188.99,19.17949838]
[1761829591319,5.35050575,189.05,189.0,0.66]
[1761829591553,5.35050575,189.04,188.99,18.51949838]
[1761829591854,5.35050575,189.02,188.99,5.29128525]
[1761829592223,0.1,189.02,188.97,5.29159851]
[1761829592421,5.35050575,188.99,188.95,5.29240539]
[1761829592638,5.35050575,188.98,188.95,5.29240539]
[1761829592942,5.35050575,188.96,188.95,5.29240539]
[1761829593129,5.35050575,188.96,188.92,18.5257643]
[1761829593334,5.35050575,188.97,188.93,0.66]
[1761829593774,20.592,189.0,188.92,18.5257643]
[1761829593775,5.35050575,188.96,188.92,18.5257643]
[1761829594053,5.35050575,188.95,188.92,18.5257643]
[1761829594543,5.35050575,188.95,188.87,5.29441357]
[1761829594544,5.35050575,188.93,188.87,5.29441357]
[1761829594864,5.35050575,188.91,188.87,5.95441357]
[1761829595068,5.35050575,188.89,188.87,5.29441357]
[1761829595355,20.692,188.94,188.87,0.66]
[1761829595356,5.35050575,188.91,188.87,0.66]
[1761829595654,20.592,188.94,188.87,0.66]
[1761829595826,5.35050575,188.92,188.87,0.66]
[1761829596243,5.35050575,188.93,188.87,0.66]
[1761829596635,5.35050575,188.92,188.87,0.66]
[1761829597150,5.35050575,188.89,188.85,18.53322742]
[1761829597352,5.35050575,188.9,188.86,0.66]
[1761829597534,5.35050575,188.91,188.86,0.66]
[1761829597733,5.35050575,188.87,188.81,4.43591698]
[1761829597993,20.592,188.89,188.81,0.66]
[1761829597994,5.35050575,188.85,188.81,0.66]
[1761829598260,5.35050575,188.83,188.8,18.53808964]
[1761829598426,5.35050575,188.84,188.8,18.53808964]
[1761829598950,5.35050575,188.89,188.81,0.66]
[1761829599262,5.35050575,188.91,188.84,5.35050575]
[1761829599460,1.99999999,189.02,188.82,45.1585793]
[1761829599461,50.0,189.0,188.87,5.35050575]
[1761829599664,5.35050575,188.95,188.86,0.14216157]
[1761829599971,5.35050575,188.95,188.88,5.35050575]
[1761829600151,5.35050575,188.96,188.89,5.35050575]
[1761829600355,5.35050575,188.97,188.9,5.49266732]
[1761829600676,5.35050575,188.95,188.9,0.66]
[1761829600868,5.35050575,188.94,188.9,0.66]
[1761829601170,5.35050575,188.94,188.88,5.35050575]
[1761829601171,5.35050575,188.91,188.84,0.14216157]
[1761829601353,20.592,188.97,188.86,0.14216157]
[1761829601354,5.35050575,188.9,188.86,0.14216157]
[1761829601552,5.35050575,188.92,188.86,0.14216157]
[1761829601867,5.35050575,188.9,188.86,0.66]
[1761829602567,20.592,188.94,188.86,0.66]
[1761829602747,20.592,188.95,188.87,0.14216157]
[1761829602944,25.94250575,188.95,188.87,0.14216157]
[1761829603156,25.94250575,188.95,188.88,0.66]
[1761829603355,0.1,189.01,188.9,5.49266732]
[1761829603573,0.1,189.01,188.92,5.35050575]
[1761829603752,5.35050575,189.0,188.92,5.35050575]
[1761829603950,20.592,188.99,188.92,6.01050575]
[1761829604147,25.58160075,188.98,188.9,5.49266732]
[1761829604379,20.592,188.98,188.9,0.14216157]
[1761829604584,20.592,188.98,188.9,6.15266732]
[1761829604876,25.94250575,188.98,188.9,6.15266732]
[1761829605064,0.1,188.99,188.9,5.49266732]
[1761829605375,20.592,189.0,188.92,23.8768661]
[1761829605547,5.35050575,189.0,188.92,23.8768661]
[1761829605752,20.592,189.01,188.94,5.35050575]
[1761829606262,50.1,189.07,188.95,0.66]
[1761829606464,0.1,189.07,188.96,0.14216157]
[1761829606673,0.1,189.07,189.0,5.35050575]
[1761829606970,50.1,189.09,189.02,5.35050575]
[1761829607177,0.1,189.12,189.02,5.35050575]
[1761829607488,0.1,189.12,189.06,5.35050575]
[1761829608064,50.1,189.11,189.04,10.6403866]
[1761829608275,0.1,189.11,189.04,23.86510094]
[1761829608648,50.1,189.11,189.04,10.6403866]
[1761829609477,50.1,189.11,189.04,23.86510094]
[1761829609664,0.1,189.11,189.04,23.86510094]
[1761829609864,20.692,189.12,189.04,23.86510094]
[1761829610270,20.692,189.12,189.04,24.52510094]
[1761829611077,20.792,189.12,189.04,24.52510094]
[1761829611276,50.0,189.11,189.04,5.28988085]
[1761829611481,20.592,189.08,189.02,5.35050575]
[1761829612770,20.692,189.08,189.0,5.29098628]
[1761829612954,0.1,189.07,189.0,5.29098628]
[1761829613280,20.592,189.06,189.01,5.35050575]
[1761829613490,20.592,189.06,189.02,5.29044545]
[1761829613658,0.1,189.05,188.98,5.35050575]
[1761829613978,50.1,189.05,188.98,5.35050575]
[1761829614185,50.1,189.05,188.96,0.66]
[1761829614186,55.45050575,189.05,188.96,6.01050575]
[1761829614763,50.1,189.05,188.96,6.01050575]
[1761829614959,5.35050575,189.05,188.96,6.01050575]
[1761829615473,5.35050575,189.05,188.97,18.52145842]
[1761829615788,5.35050575,189.06,188.97,19.18145842]
[1761829616784,5.35050575,189.04,188.97,5.95184526]
[1761829616966,5.35050575,189.04,188.97,5.29184526]
[1761829617166,50.0,189.05,188.97,5.29184526]
[1761829617406,50.0,189.05,188.92,26.46509706]
[1761829617407,50.0,189.03,188.92,0.66]
[1761829617695,5.35050575,189.01,188.93,19.18537976]
[1761829617894,5.35050575,189.01,188.94,0.66]
[1761829618191,5.35050575,189.01,188.94,6.01050575]
[1761829618765,5.35050575,189.02,188.95,5.29240539]
[1761829619290,5.35050575,189.02,188.95,18.52341888]
[1761829619462,5.35050575,189.02,188.94,11.30317902]
[1761829620091,5.35050575,189.02,188.94,24.53489279]
[1761829620617,9.78882769,189.05,188.94,24.53489279]
[1761829620902,5.35050575,189.03,188.96,5.29212531]
[1761829621066,5.35050575,189.02,188.95,5.35050575]
[1761829621275,5.35050575,189.02,188.95,10.64280496]
[1761829621472,5.35050575,189.02,188.94,0.66]
[1761829621786,5.35050575,189.02,188.94,5.2926855]
[1761829621993,9.78882769,189.03,188.94,5.2926855]
[1761829622209,9.78882769,189.03,188.94,10.64319125]
[1761829622210,5.35050575,189.02,188.94,10.64319125]
[1761829622364,5.35050575,189.02,188.94,11.30319125]
[1761829622565,5.35050575,189.02,188.94,23.87490502]
[1761829622770,5.35050575,189.04,188.96,5.35050575]
[1761829622970,5.35050575,189.04,188.97,5.29184526]
[1761829623269,25.94250575,189.04,188.97,5.29184526]
[1761829624401,20.592,189.04,188.97,5.29184526]
[1761829624700,5.35050575,189.03,188.97,5.29184526]
[1761829625114,5.35050575,189.03,188.96,0.66]
[1761829625270,25.94250575,189.04,188.95,6.01050575]
[1761829625474,50.0,189.03,188.96,61.6]
[1761829625703,5.35050575,189.02,188.96,61.6]
[1761829626111,50.0,189.03,188.93,61.6]
[1761829626112,5.35050575,188.98,188.93,61.6]
[1761829626409,5.35050575,188.98,188.91,67.55352601]
[1761829627012,35.67084365,189.04,188.93,18.52537976]
[1761829627013,20.592,189.0,188.93,18.52537976]
[1761829627175,25.94250575,189.0,188.93,18.52537976]
[1761829627380,25.94250575,189.0,188.94,0.66]
[1761829627588,20.592,189.0,188.94,0.66]
[1761829627779,5.35050575,188.99,188.94,0.66]
[1761829628979,20.592,188.96,188.88,0.66]
[1761829629186,20.592,188.96,188.86,0.66]
[1761829629187,5.35050575,188.92,188.86,0.66]
[1761829629413,20.592,188.94,188.86,0.66]
[1761829629614,5.35050575,188.92,188.87,0.66]
[1761829630899,9.78882769,188.94,188.88,3.94461995]
[1761829631079,59.78882769,188.95,188.89,3.94469126]
[1761829631080,5.35050575,188.9,188.89,3.94469126]
[1761829631472,5.35050575,188.9,188.87,0.66]
[1761829631783,5.35050575,188.89,188.88,3.94420792]
[1761829631980,5.35050575,188.89,188.83,5.29576868]
[1761829632291,5.35050575,188.87,188.84,3.94444273]
[1761829632489,5.35050575,188.87,188.85,3.94444273]
[1761829632792,5.35050575,188.87,188.84,0.66]
[1761829632974,5.35050575,188.86,188.8,5.95661016]
[1761829633172,50.0,188.97,188.85,5.35050575]
[1761829633386,5.35050575,188.9,188.85,6.01050575]
[1761829633570,5.35050575,188.9,188.85,0.66]
[1761829633766,5.35050575,188.91,188.86,0.66]
[1761829633993,5.35050575,188.9,188.86,0.66]
[1761829634195,20.592,188.92,188.86,0.66]
[1761829634396,5.35050575,188.89,188.82,0.14216157]
[1761829634571,5.35050575,188.89,188.83,6.01050575]
[1761829635000,5.35050575,188.89,188.84,6.01050575]
[1761829635371,5.35050575,188.89,188.85,5.95520783]
[1761829635772,20.592,188.92,188.87,5.35050575]
[1761829636002,25.94250575,188.92,188.86,6.01050575]
[1761829636182,5.35050575,188.92,188.86,67.61050575]
[1761829636373,59.78882769,188.99,188.88,5.35050575]
[1761829636575,5.35050575,188.91,188.88,61.6]
[1761829636909,50.0,188.95,188.85,80.79322742]
[1761829637090,20.592,188.92,188.85,85.48373317]
[1761829637402,20.592,188.96,188.87,18.53126488]
[1761829637587,5.32152723,188.93,188.88,0.66]
[1761829637786,20.592,188.96,188.88,0.66]
[1761829637982,5.35050575,188.94,188.89,5.35050575]
[1761829638300,25.94250575,188.96,188.9,5.35050575]
[1761829638500,5.35050575,188.99,188.93,5.35050575]
[1761829638888,5.35050575,188.98,188.93,0.66]
[1761829639303,5.35050575,188.95,188.88,0.66]
[1761829639606,5.35050575,188.94,188.88,6.01050575]
[1761829639777,9.78882769,189.0,188.92,5.35050575]
[1761829639980,9.78882769,189.0,188.91,0.66]
[1761829639981,5.35050575,188.96,188.91,0.66]
[1761829640182,5.35050575,188.95,188.91,0.66]
[1761829640536,20.592,188.98,188.91,6.01050575]
[1761829640687,5.35050575,188.97,188.92,6.01050575]
[1761829641009,20.592,189.0,188.92,6.01050575]
[1761829641313,8.13212176,188.97,188.93,0.66]
[1761829641480,50.0,189.0,188.86,0.52949274]
[1761829641679,8.13212176,188.9,188.86,0.66]
[1761829641907,8.13212176,188.89,188.86,0.66]
[1761829642677,8.13212176,188.89,188.83,8.13212176]
[1761829642678,8.13212176,188.87,188.83,6.00571109]
[1761829643004,20.592,188.86,188.77,5.29745192]
[1761829643184,20.592,188.86,188.78,8.84212176]
[1761829643389,8.13212176,188.84,188.79,13.42901248]
[1761829643710,20.592,188.85,188.79,6.00689072]
[1761829643897,8.13212176,188.84,188.8,0.71]
[1761829644094,20.592,188.85,188.78,66.89710877]
[1761829644297,8.13212176,188.83,188.79,0.71]
[1761829644498,8.13212176,188.81,188.79,0.71]
[1761829644688,50.0,188.96,188.81,0.14216157]
[1761829644890,50.0,188.96,188.83,8.13212176]
[1761829644891,50.0,188.93,188.83,8.13212176]
[1761829645116,8.13212176,188.88,188.84,0.71]
[1761829645614,8.13212176,188.88,188.85,5.29520783]
[1761829646002,50.0,188.93,188.85,6.00520783]
[1761829646201,20.592,188.9,188.85,6.00520783]
[1761829646388,20.592,188.91,188.85,0.71]
[1761829646389,8.13212176,188.88,188.85,0.71]
[1761829646990,70.592,188.91,188.85,0.71]
[1761829647189,20.592,188.9,188.85,0.71]
[1761829647501,8.13212176,188.89,188.86,5.29492745]
[1761829647906,8.13212176,188.89,188.86,6.00492745]
[1761829648093,8.13212176,188.9,188.86,5.29492745]
[1761829648289,8.13212176,188.9,188.87,0.71]
[1761829648608,8.13212176,188.9,188.86,6.00492745]
[1761829648806,8.13212176,188.89,188.84,8.84212176]
[1761829649008,8.13212176,188.88,188.83,8.13212176]
[1761829649203,8.13212176,188.88,188.82,8.98428333]
[1761829649607,8.13212176,188.87,188.83,0.71]
[1761829649808,8.13212176,188.85,188.8,0.71]
[1761829650017,50.0,188.9,188.81,8.13212176]
[1761829650018,8.13212176,188.86,188.81,8.13212176]
[1761829650192,8.13212176,188.84,188.81,62.31]
[1761829650398,8.13212176,188.83,188.78,0.71]
[1761829650599,8.13212176,188.84,188.78,8.84212176]
[1761829650905,28.31523429,188.92,188.78,0.71]
[1761829650906,9.78882769,188.92,188.78,0.71]
[1761829651216,8.13212176,188.86,188.81,8.13212176]
[1761829651518,8.13212176,188.84,188.81,6.00624233]
[1761829651820,70.592,188.87,188.78,13.24267767]
[1761829652015,8.13212176,188.82,188.8,0.71]
[1761829652523,70.592,188.87,188.8,0.71]
[1761829652524,8.13212176,188.83,188.8,0.71]
[1761829653309,8.13212176,188.81,188.78,5.29708702]
[1761829653508,20.592,188.84,188.76,0.71]
[1761829653709,8.13212176,188.8,188.76,0.71]
[1761829653905,8.13212176,188.82,188.76,8.84212176]
[1761829654410,20.592,188.86,188.76,8.84212176]
[1761829654411,20.592,188.85,188.77,0.71]
[1761829654611,20.592,188.86,188.77,62.31]
[1761829654612,8.13212176,188.82,188.77,62.31]
[1761829655027,8.13212176,188.82,188.78,0.71]
[1761829655223,8.13212176,188.81,188.78,0.71]
[1761829655541,20.592,188.86,188.79,5.29689072]
[1761829655826,8.13212176,188.81,188.79,66.89689072]
[1761829656020,20.592,188.86,188.79,66.89689072]
[1761829656230,8.13212176,188.81,188.79,66.89689072]
[1761829656924,20.592,188.86,188.79,66.89689072]
[1761829657227,20.592,188.86,188.79,67.60689072]
[1761829657425,8.13212176,188.82,188.79,67.60689072]
[1761829657606,8.13212176,188.81,188.79,67.60689072]
[1761829657807,8.13212176,188.82,188.79,6.00689072]
[1761829658215,8.13212176,188.86,188.8,8.84212176]
[1761829658422,8.13212176,188.86,188.81,8.84212176]
[1761829658628,8.13212176,188.88,188.83,8.13212176]
[1761829658825,8.13212176,188.87,188.82,8.84212176]
[1761829659028,9.78882769,188.92,188.81,61.6]
[1761829659029,8.13212176,188.83,188.81,61.6]
[1761829659239,8.13212176,188.82,188.79,5.29689072]
[1761829659414,8.13212176,188.81,188.79,5.29689072]
[1761829659616,70.592,188.86,188.78,0.71]
[1761829659815,8.13212176,188.82,188.78,0.71]
[1761829660334,8.13212176,188.81,188.78,0.71]
[1761829660522,8.13212176,188.82,188.78,0.71]
[1761829660722,8.13212176,188.81,188.78,0.71]
[1761829661025,70.592,188.86,188.76,61.6]
[1761829661026,8.13212176,188.79,188.76,61.6]
[1761829661229,8.13212176,188.77,188.75,0.2]
[1761829661538,8.13212176,188.76,188.75,0.2]
[1761829662319,20.592,188.81,188.75,6.20780524]
[1761829662518,20.592,188.81,188.75,19.45283835]
[1761829662721,8.13212176,188.78,188.75,0.2]
[1761829663061,20.592,188.81,188.75,0.2]
[1761829663062,8.13212176,188.76,188.75,0.2]
[1761829663535,70.592,188.81,188.75,0.2]
[1761829663834,10.27428332,188.89,188.75,0.2]
[1761829663835,58.13212176,188.76,188.75,0.2]
[1761829664042,76.05307121,188.76,188.75,0.2]
[1761829664406,50.0,188.71,188.65,0.2]
[1761829664615,8.13212176,188.66,188.65,5.50064706]
[1761829664818,8.13212176,188.67,188.65,5.50064706]
[1761829665718,8.13212176,188.66,188.65,0.2]
[1761829666125,70.592,188.69,188.65,0.2]
[1761829666323,8.13212176,188.69,188.65,19.46283234]
[1761829666530,8.13212176,188.68,188.66,0.71]
[1761829667535,8.13212176,188.68,188.65,5.50077828]
[1761829667731,8.13212176,188.67,188.65,5.50077828]
[1761829667933,8.13212176,188.66,188.65,5.50077828]
[1761829668125,8.13212176,188.66,188.65,0.2]
[1761829668329,20.592,188.66,188.65,0.2]
[1761829668523,8.13212176,188.67,188.65,0.2]
[1761829668724,28.72412176,188.68,188.65,6.21082162]
[1761829669817,28.72412176,188.68,188.65,5.50082162]
[1761829670017,8.13212176,188.66,188.65,0.2]
[1761829670734,20.592,188.66,188.65,0.2]
[1761829670919,28.72412176,188.66,188.65,0.2]
[1761829671429,28.72412176,188.66,188.65,5.50082162]
[1761829671617,20.592,188.66,188.65,5.50082162]
[1761829671822,28.72412176,188.66,188.65,5.50082162]
[1761829672913,28.72412176,188.66,188.65,0.2]
[1761829673335,28.72412176,188.66,188.65,5.50082162]
[1761829673336,20.592,188.66,188.65,5.50082162]
[1761829673533,28.72412176,188.66,188.65,5.50082162]
[1761829674041,28.72412176,188.66,188.65,0.2]
[1761829674246,67.92094945,188.66,188.65,0.2]
[1761829675744,59.78882769,188.66,188.65,0.2]
[1761829676046,67.92094945,188.66,188.65,0.2]
[1761829676249,17.92094945,188.66,188.65,0.2]
[1761829676628,38.51294945,188.66,188.65,0.2]
[1761829676819,67.92094945,188.66,188.65,0.2]
[1761829677632,59.78882769,188.66,188.65,0.2]
[1761829677860,67.92094945,188.66,188.65,0.2]
[1761829680358,88.51294945,188.66,188.65,0.2]
[1761829682437,0.14216157,188.71,188.65,0.2]
[1761829682438,50.0,188.71,188.65,0.2]
[1761829682634,58.13212176,188.66,188.65,0.2]
[1761829682961,67.92094945,188.66,188.65,0.2]
[1761829683668,50.0,188.69,188.65,0.2]
[1761829683959,8.13212176,188.66,188.65,0.2]
[1761829684157,9.78882769,188.68,188.65,0.2]
[1761829684534,8.13212176,188.66,188.65,0.2]
[1761829684938,17.92094945,188.66,188.65,0.2]
[1761829686076,23.36365167,188.66,188.65,0.2]
[1761829686534,18.06311102,188.66,188.65,0.2]
[1761829686734,23.36365167,188.66,188.65,0.2]
[1761829687484,9.78882769,188.61,188.6,0.2]
[1761829687635,17.92094945,188.61,188.6,0.2]
[1761829687981,18.06311102,188.61,188.6,0.2]
[1761829688340,17.92094945,188.61,188.6,0.2]
[1761829689074,20.592,188.54,188.52,0.66]
[1761829689278,20.592,188.52,188.5,0.66]
[1761829689496,8.13212176,188.51,188.5,0.66]
[1761829689788,8.13212176,188.51,188.48,0.66]
[1761829690088,20.592,188.52,188.48,0.66]
[1761829690089,8.13212176,188.49,188.48,0.66]
[1761829690287,28.72412176,188.49,188.47,0.2]
[1761829690590,8.13212176,188.48,188.47,0.2]
[1761829690797,28.72412176,188.49,188.47,0.2]
[1761829690997,8.13212176,188.51,188.47,5.50582059]
[1761829691185,8.13212176,188.51,188.49,5.30532123]
[1761829691694,8.13212176,188.5,188.47,5.50571112]
[1761829691897,8.13212176,188.48,188.47,5.50571112]
[1761829692405,20.592,188.51,188.47,0.86]
[1761829692582,20.592,188.51,188.47,5.50583096]
[1761829693080,8.13212176,188.5,188.48,0.66]
[1761829693394,20.592,188.51,188.48,5.96560271]
[1761829693602,8.13212176,188.49,188.48,5.30560271]
[1761829693811,8.13212176,188.49,188.47,0.2]
[1761829694116,8.13212176,188.48,188.47,5.5058067]
[1761829694612,8.13212176,188.48,188.47,0.2]
[1761829695184,8.13212176,188.48,188.47,0.87]
[1761829695686,8.13212176,188.48,188.47,0.2]
[1761829697898,28.72412176,188.48,188.47,0.87]
[1761829698199,20.592,188.48,188.47,0.87]
[1761829698374,28.72412176,188.48,188.47,0.87]
[1761829698771,20.592,188.56,188.47,6.17588422]
[1761829698971,5.30225793,188.6,188.47,6.17588422]
[1761829698972,50.0,188.6,188.49,0.14216157]
[1761829699190,8.13212176,188.53,188.49,0.14216157]
[1761829699398,8.13212176,188.51,188.47,0.87]
[1761829699571,5.30282844,188.58,188.47,0.87]
[1761829699572,8.13212176,188.49,188.47,0.2]
[1761829700304,8.13212176,188.49,188.48,0.67]
[1761829700676,50.0,188.57,188.48,0.67]
[1761829700993,8.13212176,188.52,188.48,0.67]
[1761829701400,20.592,188.58,188.5,5.30503978]
[1761829701702,8.13212176,188.53,188.5,5.30503978]
[1761829701901,50.0,188.62,188.51,0.81216157]
[1761829702104,8.13212176,188.56,188.51,0.81216157]
[1761829703380,5.37541703,188.55,188.52,18.56566941]
[1761829703606,5.37541703,188.53,188.52,5.30447697]
[1761829703802,20.592,188.57,188.52,6.01447697]
[1761829704010,5.37541703,188.53,188.52,0.71]
[1761829704878,5.37541703,188.53,188.49,0.71]
[1761829705095,5.37541703,188.5,188.49,0.71]
[1761829705294,5.37541703,188.5,188.48,5.30560271]
[1761829705512,5.37541703,188.5,188.48,6.01560271]
[1761829705683,5.37541703,188.5,188.48,0.71]
[1761829706208,20.592,188.51,188.48,0.71]
[1761829706515,5.37541703,188.49,188.48,0.71]
[1761829706688,5.37541703,188.49,188.47,5.50585748]
[1761829706885,5.37541703,188.49,188.47,6.21585748]
[1761829707785,5.37541703,188.49,188.48,0.71]
[1761829708484,5.37541703,188.49,188.47,0.2]
[1761829709007,20.592,188.48,188.47,0.2]
[1761829709308,20.592,188.48,188.47,0.91]
[1761829709615,20.592,188.48,188.47,0.2]
[1761829710295,25.96741703,188.48,188.47,6.21588422]
[1761829711426,25.96741703,188.48,188.47,5.50588422]
[1761829711719,25.96741703,188.48,188.47,6.21588422]
[1761829711921,25.96741703,188.48,188.47,0.2]
[1761829712637,0.71,188.53,188.47,6.21588422]
[1761829712638,20.592,188.53,188.47,6.21588422]
[1761829712820,5.37541703,188.49,188.47,19.48059478]
[1761829713019,5.37541703,188.49,188.48,0.71]
[1761829713830,5.37541703,188.49,188.48,6.01560271]
[1761829713997,5.37541703,188.51,188.48,6.01560271]
[1761829714326,5.37541703,188.51,188.49,0.71]
[1761829715626,20.592,188.53,188.49,0.71]
[1761829715794,5.37541703,188.52,188.5,5.30503978]
[1761829715994,50.0,188.62,188.5,18.56763924]
[1761829716190,0.71,188.64,188.51,0.85216157]
[1761829716191,5.37541703,188.57,188.51,0.85216157]
[1761829717425,5.37541703,188.52,188.51,0.71]
[1761829717721,5.37541703,188.52,188.49,0.71]
[1761829717902,5.37541703,188.51,188.48,0.71]
[1761829718408,5.37541703,188.51,188.49,5.30528146]
[1761829718796,5.37541703,188.51,188.5,0.71]
[1761829719921,5.37541703,188.51,188.5,6.01503978]
[1761829720113,20.592,188.55,188.5,6.01503978]
[1761829720312,5.37541703,188.51,188.5,6.01503978]
[1761829722001,20.592,188.54,188.5,0.71]
[1761829722199,5.37541703,188.53,188.49,5.30529393]
[1761829722534,5.37541703,188.54,188.49,18.56859702]
[1761829722826,5.37541703,188.54,188.5,0.71]
[1761829723527,20.592,188.56,188.5,0.71]
[1761829723732,2.11135284,188.54,188.5,0.71]
[1761829724033,2.11135284,188.54,188.51,18.56665428]
[1761829724327,2.11135284,188.52,188.5,0.71]
[1761829724524,20.592,188.54,188.49,5.30519328]
[1761829724525,2.11135284,188.51,188.49,5.30519328]
[1761829724701,2.11135284,188.5,188.49,6.01519328]
[1761829725314,20.592,188.56,188.49,6.01519328]
[1761829725527,20.592,188.56,188.5,0.71]
[1761829725716,20.592,188.56,188.51,0.14216157]
[1761829725717,2.11135284,188.55,188.51,0.14216157]
[1761829725920,20.592,188.56,188.51,0.14216157]
[1761829725921,2.11135284,188.54,188.52,5.30447697]
[1761829726119,0.71,188.59,188.52,19.27566941]
[1761829726326,2.11135284,188.55,188.52,19.27566941]
[1761829726714,2.11135284,188.56,188.53,0.71]
[1761829727125,2.11135284,188.55,188.53,0.71]
[1761829728034,2.11135284,188.55,188.54,5.30391428]
[1761829728718,20.592,188.58,188.54,5.30391428]
[1761829728915,2.11135284,188.55,188.54,5.30391428]
[1761829729108,20.592,188.58,188.54,5.30391428]
[1761829729308,30.38082769,188.59,188.54,5.30391428]
[1761829729517,2.11135284,188.55,188.54,5.30391428]
[1761829731321,2.11135284,188.56,188.54,19.2737]
[1761829731524,8.44541136,188.64,188.54,19.2737]
[1761829731525,2.11135284,188.57,188.55,0.71]
[1761829732320,2.11135284,188.57,188.56,5.30335171]
[1761829734136,20.592,188.59,188.56,5.30335171]
[1761829734137,2.11135284,188.58,188.56,19.281731]
[1761829734356,2.11135284,188.59,188.57,0.72]
[1761829734508,2.11135284,188.62,188.57,0.72]
[1761829734704,2.11135284,188.61,188.57,0.72]
[1761829734911,2.11135284,188.6,188.55,0.86216157]
[1761829735109,8.44541136,188.64,188.55,0.86216157]
[1761829735334,2.11135284,188.6,188.55,0.86216157]
[1761829736451,2.11135284,188.58,188.56,18.561731]
[1761829736923,2.11135284,188.59,188.57,0.72]
[1761829737546,2.11135284,188.59,188.53,2.11135284]
[1761829737547,2.11135284,188.58,188.53,0.72]
[1761829737733,2.11135284,188.55,188.53,0.72]
[1761829738318,9.78882769,188.61,188.53,0.72]